Workbook

Sheet Salaire
C1: Bulletin de Salaire
C2: Ce bulletin de salaire doit être conservé sans limitation de durée
B3: Cotisations salariales applicables au 1er janvier 2007
A5: 1 | B5: BULLETIN DE PAIE | E5: du ……………………… | F5: 2017-08-01 | G5: au …………………….. | H5: 31/08/2017
A6: 2 | B6: NOM du salarié …………………………….. | E6: Prénom …………………………….
A7: 3 | B7: Adresse …………………………………………………………………………………….
A8: 4 | B8: N° immatriculation sociale du salarié : ………………………………………
A9: 5 | B9: Convention collective nationale des assistants maternels du particulier employeur | H9: NAF-88-91A
A10: 6 | B10: Emploi : Assistant Maternel
A11: 7 | B11: Congés : du ………………………... Au ………………………………….. | K11: nombre d'heures théoriques
A13: 8 | B13: SALAIRE MENSUEL BRUT | J13: Jours
A14: 9 | B14: Salaire mensualisé brut de base : | E14: nombres d'heures: | F14: 120 | H14: =F14*F18 -> 504 | J14: 1 | K14: 10:30:00 | L14: Mar | N14: 0.4375
A15: 10 | B15: Heures complémentaires : | E15: nombres d'heures: | J15: 2 | L15: Mer
A16: 11 | B16: Heures majorées : | E16: nombres d'heures …………. | J16: 3 | K16: 10:30:00 | L16: Jeu | N16: 0.4375
A17: 12 | B17: Accueil Occasionnel : | E17: nombres d'heures …………. | J17: 4 | K17: 09:30:00 | L17: Ven | N17: 0.3958333333
A18: 13 | B18: Absences : | E18: Taux horaire brut | F18: 4.2 | J18: 5 | L18: Sam
A19: 14 | B19: Congés Payés : …………………………………………………………………. | D19: 0.1 | H19: =H14*D19 -> 50.4 | J19: 6 | L19: Dim
A20: 15 | B20: Divers : | C20: ……………………………………………………………………. | J20: 7 | K20: 09:30:00 | L20: Lun | N20: 0.3958333333
A21: 16 | J21: 8 | K21: 10:30:00 | L21: Mar | N21: 0.4375
A22: 17 | F22: SALAIRE TOTAL BRUT | H22: =H14+H19+H15-H18-H13 -> 554.4 | J22: 9 | L22: Mer
A23: 18 | B23: A déduire | J23: 10 | K23: 10:30:00 | L23: Jeu | N23: 0.4375
A24: 19 | B24: Part salariale des cotisations sociales | E24: BASE (100 % du salaire brut) | F24: TAUX | H24: MONTANT | J24: 11 | K24: 09:30:00 | L24: Ven | N24: 0.3958333333
A25: 20 | J25: 12 | L25: Sam
A26: 21 | B26: SECURITE SOCIALE | D26: Maladie et vieillesse | E26: ……………. | F26: 0.0805 | H26: =F26*H22 -> 44.6292 | J26: 13 | L26: Dim
E27: ……………. | F27: 0 | J27: 14 | K27: 09:30:00 | L27: Lun | N27: 0.3958333333
A28: 22 | B28: RETRAITE COMPLEMENTAIRE | E28: ……………. | F28: 0.031 | H28: =F28*H22 -> 17.1864 | J28: 15 | K28: 10:30:00 | L28: Mar | M28: FERIE | N28: 0.4375
A29: 23 | B29: AGFF | E29: ……………. | F29: 0.008 | H29: =F29*H22 -> 4.4352 | J29: 16 | L29: Mer
A30: 24 | B30: ASSEDIC (si l'AM a moins de 65 ans) | E30: ……………. | F30: 0.024 | H30: =F30*H22 -> 13.3056 | J30: 17 | K30: 10:30:00 | L30: Jeu | N30: 0.4375
A31: 25 | B31: PREVOYANCE | E31: ……………. | F31: 0.0115 | H31: =F31*H22 -> 6.3756 | J31: 18 | K31: 09:30:00 | L31: Ven | N31: 0.3958333333
A32: 26 | E32: 98,25 % du | F32: TAUX | H32: MONTANT | J32: 19 | L32: Sam
A33: 27 | E33: salaire brut | J33: 20 | L33: Dim
A34: 28 | B34: C.S.G. déductible | E34: =0.9825*H22 -> 544.698 | F34: 0.051 | H34: =E34*F34 -> 27.779598 | J34: 21 | K34: 09:30:00 | L34: Lun | N34: 0.3958333333
A35: 29 | B35: C.S.G. et C.R.D.S. non déductibles | E35: =0.9825*H22 -> 544.698 | F35: 0.029 | H35: =E35*F35 -> 15.796242 | J35: 22 | K35: 10:30:00 | L35: Mar | N35: 0.4375
A36: 30 | E36: Total des retenues (lignes 21 à 29) | H36: =SUM(H26:H35) -> 129.50784 | J36: 23 | L36: Mer
A37: 31 | F37: SALAIRE NET | H37: =H22-H36 -> 424.89216 | J37: 24 | K37: 10:30:00 | L37: Jeu | N37: 0.4375
A38: 32 | B38: A ajouter : Indemnités | E38: Nb Jours | F38: à | J38: 25 | K38: 09:30:00 | L38: Ven | N38: 0.3958333333
A39: 33 | B39: Fourniture, entretien : nombre de jours | E39: =K47 -> 18 | F39: 3.3 | H39: =E39*F39 -> 59.4 | J39: 26 | L39: Sam
A40: 34 | B40: Nourriture-repas : nombre | E40: =K47 -> 18 | F40: 4.5 | H40: =E40*F40 -> 81 | J40: 27 | L40: Dim
A41: 35 | B41: Déplacement : nombre de kilomètres | E41: 0 | F41: 0 | H41: =E41*F41 -> 0 | J41: 28 | K41: 09:30:00 | L41: Lun | N41: 0.3958333333
A42: 36 | B42: Divers : | E42: 0 | F42: 0 | H42: =E42*F42 -> 0 | J42: 29 | K42: 10:30:00 | L42: Mar | N42: 0.4375
A43: 37 | E43: Total à ajouter (lignes 33 à 36) | H43: =H39+H40 -> 140.4 | J43: 30 | L43: Mer
A44: 38 | E44: NET A PAYER (lignes 31 + 37) | H44: =SUM(H37+H43) -> 565.29216 | J44: 31 | K44: 10:30:00 | L44: Jeu | N44: 0.4375
A45: 39 | E45: Acomptes versés | I45: Total H | K45: =SUM(K14:K44) -> 7.541666667
J46: Total
A47: 40 | E47: Solde à verser | J47: jours | K47: =COUNT(K14:K44) -> 18
A48: 41 | B48: NOM de l'employeur : …………………………………………………………………………….
A49: 42 | B49: Adresse : …………………………………………………………………………………………..
A50: 43 | B50: U.R.S.S.A.F. de ………….. | D50: N° …………………………… | F50: ou N° PAJEMPLOI ……………………………
A51: 44 | B51: N° d'identification employeur …………………………………………………………………
A52: 45 | B52: Part patronale des cotisations sociales | E52: BASE(salaire | F52: TAUX | H52: MONTANT
A53: 46 | E53: brut)
A54: 47 | B54: SECURITE SOCIALE+ CSA + FNAL | E54: …………….. | F54: 0.2935 | H54: =F54*H22 -> 162.7164
A55: 48 | B55: RETRAITE COMPLEMENTAIRE | E55: …………….. | F55: 0.0458 | H55: =F55*H22 -> 25.39152
A56: 49 | B56: AGFF | E56: …………….. | F56: 0.012 | H56: =F56*H22 -> 6.6528
A57: 50 | B57: ASSEDIC | E57: …………….. | F57: 0.04 | H57: =F57*H22 -> 22.176
A58: 51 | B58: PREVOYANCE | E58: …………….. | F58: 0.0137 | H58: 5.23
A59: 52 | B59: FORMATION PROFESSIONNELLE | E59: …………….. | F59: 0.0015 | H59: =F59*H22 -> 0.8316
A60: 53 | B60: Total des cotisations patronales | H60: =SUM(H54:H59) -> 222.99832
A61: 54 | E61: Pour information
A62: 55 | D62: Net à payer (ligne38) : | E62: =H44 -> 565.29216 | F62: nbre de jours d'accueil effectués : ………… | H62: =K47 -> 18
A63: 56 | D63: C.S.G. et C.R.D.S. non déduct (ligne29) : | E63: =H35 -> 15.796242
A64: 57 | D64: Montant imposable (ligne 55et 56) : | E64: =E62+E63 -> 581.088402 | F64: nbre d'heures | H64: =K45 -> 7.541666667
B66: Date de paiement : | D66: =H5 -> 31/08/2017 | E66: Signature de l'employeur :

Sheet Horaires
A1: Lun | B1: 09:30:00
A2: Mar | B2: 10:30:00
A3: Mer
A4: Jeu | B4: 10:30:00
A5: Ven | B5: 09:30:00
A6: Sam
A7: Dim
A10: Entrez ici les heures de garde par jour

Sheet Feries
A1: Exemple de calcul de durée de travail
A3: Date de début de carrière | B3: Date de fin de carrière | C3: Période de début temps partiel | D3: Période de fin de temps partiel | E3: Nb de jours ouvrés
A4: 1980-02-01 | B4: 2010-02-01 | E4: =NETWORKDAYS(A4,B4) -> 7827 | F4: * doit servir de référence pour le calcul car cela correspond à 30 ans de jours ouvrés sans aucun temps partie
F5: et sans jours fériés
A7: Pour les jours fériés, j'ai trouvé ceci :
A8: http://xxl-leblog.svmlemag.fr/2005/03/table-des-jours.html
B10: =YEAR(A4) -> 1980 | C10: =B10+1 -> 1981 | D10: =C10+1 -> 1982 | E10: 1983 | F10: 1984 | G10: 1985 | H10: 1986 | I10: 1987 | J10: 1988 | K10: 1989 | L10: 1990 | M10: 1991 | N10: 1992 | O10: 1993 | P10: 1994 | Q10: 1995 | R10: 1996 | S10: 1997 | T10: 1998 | U10: 1999 | V10: 2000 | W10: 2001 | X10: 2002 | Y10: 2003 | Z10: 2004 | AA10: 2005 | AB10: 2006 | AC10: 2007 | AD10: 2008 | AE10: =AD10+1 -> 2009 | AF10: 2010 | AG10: =AF10+1 -> 2011 | AH10: =AG10+1 -> 2012 | AI10: =AH10+1 -> 2013 | AJ10: =AI10+1 -> 2014 | AK10: =AJ10+1 -> 2015 | AL10: =AK10+1 -> 2016 | AM10: =AL10+1 -> 2017 | AN10: =AM10+1 -> 2018 | AO10: =AN10+1 -> 2019 | AP10: =AO10+1 -> 2020 | AQ10: =AP10+1 -> 2021 | AR10: =AQ10+1 -> 2022 | AS10: =AR10+1 -> 2023 | AT10: =AS10+1 -> 2024 | AU10: =AT10+1 -> 2025 | AV10: =AU10+1 -> 2026 | AW10: =AV10+1 -> 2027 | AX10: =AW10+1 -> 2028 | AY10: =AX10+1 -> 2029 | AZ10: =AY10+1 -> 2030 | BA10: =AZ10+1 -> 2031 | BB10: =BA10+1 -> 2032 | BC10: =BB10+1 -> 2033 | BD10: =BC10+1 -> 2034 | BE10: =BD10+1 -> 2035 | BF10: =BE10+1 -> 2036 | BG10: =BF10+1 -> 2037 | BH10: =BG10+1 -> 2038 | BI10: =BH10+1 -> 2039 | BJ10: =BI10+1 -> 2040 | BK10: =BJ10+1 -> 2041 | BL10: =BK10+1 -> 2042 | BM10: =BL10+1 -> 2043 | BN10: =BM10+1 -> 2044 | BO10: =BN10+1 -> 2045 | BP10: =BO10+1 -> 2046
A11: Premier de l'an | B11: =DATE(B10,1,1) -> 1980-01-01 | C11: =DATE(C10,1,1) -> 1981-01-01 | D11: 1982-01-01 | E11: 1983-01-01 | F11: 1984-01-01 | G11: 1985-01-01 | H11: 1986-01-01 | I11: 1987-01-01 | J11: 1988-01-01 | K11: 1989-01-01 | L11: 1990-01-01 | M11: 1991-01-01 | N11: 1992-01-01 | O11: 1993-01-01 | P11: 1994-01-01 | Q11: 1995-01-01 | R11: 1996-01-01 | S11: 1997-01-01 | T11: 1998-01-01 | U11: 1999-01-01 | V11: 2000-01-01 | W11: 2001-01-01 | X11: 2002-01-01 | Y11: 2003-01-01 | Z11: 2004-01-01 | AA11: 2005-01-01 | AB11: 2006-01-01 | AC11: 2007-01-01 | AD11: 2008-01-01 | AE11: 2009-01-01 | AF11: 2010-01-01 | AG11: =DATE(AG10,1,1) -> 2011-01-01 | AH11: 2012-01-01 | AI11: 2013-01-01 | AJ11: 2014-01-01 | AK11: 2015-01-01 | AL11: 2016-01-01 | AM11: 2017-01-01 | AN11: 2018-01-01 | AO11: 2019-01-01 | AP11: 2020-01-01 | AQ11: 2021-01-01 | AR11: 2022-01-01 | AS11: 2023-01-01 | AT11: 2024-01-01 | AU11: 2025-01-01 | AV11: 2026-01-01 | AW11: 2027-01-01 | AX11: 2028-01-01 | AY11: 2029-01-01 | AZ11: 2030-01-01 | BA11: 2031-01-01 | BB11: 2032-01-01 | BC11: 2033-01-01 | BD11: 2034-01-01 | BE11: 2035-01-01 | BF11: 2036-01-01 | BG11: 2037-01-01 | BH11: 2038-01-01 | BI11: 2039-01-01 | BJ11: 2040-01-01 | BK11: 2041-01-01 | BL11: 2042-01-01 | BM11: 2043-01-01 | BN11: 2044-01-01 | BO11: 2045-01-01 | BP11: 2046-01-01
A12: Lundi de Pâques | B12: =B22+1 -> 1980-04-07 | C12: 1981-04-20 | D12: 1982-04-12 | E12: 1983-04-04 | F12: 1984-04-23 | G12: 1985-04-08 | H12: 1986-03-31 | I12: 1987-04-20 | J12: 1988-04-04 | K12: 1989-03-27 | L12: 1990-04-16 | M12: 1991-04-01 | N12: 1992-04-20 | O12: 1993-04-12 | P12: 1994-04-04 | Q12: 1995-04-17 | R12: 1996-04-08 | S12: 1997-03-31 | T12: 1998-04-13 | U12: 1999-04-05 | V12: 2000-04-24 | W12: 2001-04-16 | X12: 2002-04-01 | Y12: 2003-04-21 | Z12: 2004-04-12 | AA12: 2005-03-28 | AB12: 2006-04-17 | AC12: 2007-04-09 | AD12: 2008-03-24 | AE12: 2009-04-13 | AF12: 2010-04-05 | AG12: =AG22+1 -> 2011-04-25 | AH12: 2012-04-09 | AI12: 2013-04-01 | AJ12: 2014-04-21 | AK12: 2015-04-06 | AL12: 2016-03-28 | AM12: 2017-04-17 | AN12: 2018-04-02 | AO12: 2019-04-22 | AP12: 2020-04-13 | AQ12: 2021-04-05 | AR12: 2022-04-18 | AS12: 2023-04-10 | AT12: 2024-04-01 | AU12: 2025-04-21 | AV12: 2026-04-06 | AW12: 2027-03-29 | AX12: 2028-04-17 | AY12: 2029-04-02 | AZ12: 2030-04-22 | BA12: 2031-04-14 | BB12: 2032-03-29 | BC12: 2033-04-18 | BD12: 2034-04-10 | BE12: 2035-03-26 | BF12: 2036-04-14 | BG12: 2037-04-06 | BH12: 2038-04-26 | BI12: 2039-04-11 | BJ12: 2040-04-02 | BK12: 2041-04-22 | BL12: 2042-04-07 | BM12: 2043-03-30 | BN12: 2044-04-18 | BO12: 2045-04-10 | BP12: 2046-03-26
A13: Fête du travail | B13: =DATE(B10,5,1) -> 1980-05-01 | C13: =DATE(C10,5,1) -> 1981-05-01 | D13: 1982-05-01 | E13: 1983-05-01 | F13: 1984-05-01 | G13: 1985-05-01 | H13: 1986-05-01 | I13: 1987-05-01 | J13: 1988-05-01 | K13: 1989-05-01 | L13: 1990-05-01 | M13: 1991-05-01 | N13: 1992-05-01 | O13: 1993-05-01 | P13: 1994-05-01 | Q13: 1995-05-01 | R13: 1996-05-01 | S13: 1997-05-01 | T13: 1998-05-01 | U13: 1999-05-01 | V13: 2000-05-01 | W13: 2001-05-01 | X13: 2002-05-01 | Y13: 2003-05-01 | Z13: 2004-05-01 | AA13: 2005-05-01 | AB13: 2006-05-01 | AC13: 2007-05-01 | AD13: 2008-05-01 | AE13: 2009-05-01 | AF13: 2010-05-01 | AG13: =DATE(AG10,5,1) -> 2011-05-01 | AH13: 2012-05-01 | AI13: 2013-05-01 | AJ13: 2014-05-01 | AK13: 2015-05-01 | AL13: 2016-05-01 | AM13: 2017-05-01 | AN13: 2018-05-01 | AO13: 2019-05-01 | AP13: 2020-05-01 | AQ13: 2021-05-01 | AR13: 2022-05-01 | AS13: 2023-05-01 | AT13: 2024-05-01 | AU13: 2025-05-01 | AV13: 2026-05-01 | AW13: 2027-05-01 | AX13: 2028-05-01 | AY13: 2029-05-01 | AZ13: 2030-05-01 | BA13: 2031-05-01 | BB13: 2032-05-01 | BC13: 2033-05-01 | BD13: 2034-05-01 | BE13: 2035-05-01 | BF13: 2036-05-01 | BG13: 2037-05-01 | BH13: 2038-05-01 | BI13: 2039-05-01 | BJ13: 2040-05-01 | BK13: 2041-05-01 | BL13: 2042-05-01 | BM13: 2043-05-01 | BN13: 2044-05-01 | BO13: 2045-05-01 | BP13: 2046-05-01
A14: Victoire de 1945 | B14: =DATE(B10,5,8) -> 1980-05-08 | C14: =DATE(C10,5,8) -> 1981-05-08 | D14: 1982-05-08 | E14: 1983-05-08 | F14: 1984-05-08 | G14: 1985-05-08 | H14: 1986-05-08 | I14: 1987-05-08 | J14: 1988-05-08 | K14: 1989-05-08 | L14: 1990-05-08 | M14: 1991-05-08 | N14: 1992-05-08 | O14: 1993-05-08 | P14: 1994-05-08 | Q14: 1995-05-08 | R14: 1996-05-08 | S14: 1997-05-08 | T14: 1998-05-08 | U14: 1999-05-08 | V14: 2000-05-08 | W14: 2001-05-08 | X14: 2002-05-08 | Y14: 2003-05-08 | Z14: 2004-05-08 | AA14: 2005-05-08 | AB14: 2006-05-08 | AC14: 2007-05-08 | AD14: 2008-05-08 | AE14: 2009-05-08 | AF14: 2010-05-08 | AG14: =DATE(AG10,5,8) -> 2011-05-08 | AH14: 2012-05-08 | AI14: 2013-05-08 | AJ14: 2014-05-08 | AK14: 2015-05-08 | AL14: 2016-05-08 | AM14: 2017-05-08 | AN14: 2018-05-08 | AO14: 2019-05-08 | AP14: 2020-05-08 | AQ14: 2021-05-08 | AR14: 2022-05-08 | AS14: 2023-05-08 | AT14: 2024-05-08 | AU14: 2025-05-08 | AV14: 2026-05-08 | AW14: 2027-05-08 | AX14: 2028-05-08 | AY14: 2029-05-08 | AZ14: 2030-05-08 | BA14: 2031-05-08 | BB14: 2032-05-08 | BC14: 2033-05-08 | BD14: 2034-05-08 | BE14: 2035-05-08 | BF14: 2036-05-08 | BG14: 2037-05-08 | BH14: 2038-05-08 | BI14: 2039-05-08 | BJ14: 2040-05-08 | BK14: 2041-05-08 | BL14: 2042-05-08 | BM14: 2043-05-08 | BN14: 2044-05-08 | BO14: 2045-05-08 | BP14: 2046-05-08
A15: Ascension | B15: =B22+39 -> 1980-05-15 | C15: 1981-05-28 | D15: 1982-05-20 | E15: 1983-05-12 | F15: 1984-05-31 | G15: 1985-05-16 | H15: 1986-05-08 | I15: 1987-05-28 | J15: 1988-05-12 | K15: 1989-05-04 | L15: 1990-05-24 | M15: 1991-05-09 | N15: 1992-05-28 | O15: 1993-05-20 | P15: 1994-05-12 | Q15: 1995-05-25 | R15: 1996-05-16 | S15: 1997-05-08 | T15: 1998-05-21 | U15: 1999-05-13 | V15: 2000-06-01 | W15: 2001-05-24 | X15: 2002-05-09 | Y15: 2003-05-29 | Z15: 2004-05-20 | AA15: 2005-05-05 | AB15: 2006-05-25 | AC15: 2007-05-17 | AD15: 2008-05-01 | AE15: 2009-05-21 | AF15: 2010-05-13 | AG15: =AG22+39 -> 2011-06-02 | AH15: 2012-05-17 | AI15: 2013-05-09 | AJ15: 2014-05-29 | AK15: 2015-05-14 | AL15: 2016-05-05 | AM15: 2017-05-25 | AN15: 2018-05-10 | AO15: 2019-05-30 | AP15: 2020-05-21 | AQ15: 2021-05-13 | AR15: 2022-05-26 | AS15: 2023-05-18 | AT15: 2024-05-09 | AU15: 2025-05-29 | AV15: 2026-05-14 | AW15: 2027-05-06 | AX15: 2028-05-25 | AY15: 2029-05-10 | AZ15: 2030-05-30 | BA15: 2031-05-22 | BB15: 2032-05-06 | BC15: 2033-05-26 | BD15: 2034-05-18 | BE15: 2035-05-03 | BF15: 2036-05-22 | BG15: 2037-05-14 | BH15: 2038-06-03 | BI15: 2039-05-19 | BJ15: 2040-05-10 | BK15: 2041-05-30 | BL15: 2042-05-15 | BM15: 2043-05-07 | BN15: 2044-05-26 | BO15: 2045-05-18 | BP15: 2046-05-03
A16: Pentecôte | B16: =B22+50 -> 1980-05-26 | C16: 1981-06-08 | D16: 1982-05-31 | E16: 1983-05-23 | F16: 1984-06-11 | G16: 1985-05-27 | H16: 1986-05-19 | I16: 1987-06-08 | J16: 1988-05-23 | K16: 1989-05-15 | L16: 1990-06-04 | M16: 1991-05-20 | N16: 1992-06-08 | O16: 1993-05-31 | P16: 1994-05-23 | Q16: 1995-06-05 | R16: 1996-05-27 | S16: 1997-05-19 | T16: 1998-06-01 | U16: 1999-05-24 | V16: 2000-06-12 | W16: 2001-06-04 | X16: 2002-05-20 | Y16: 2003-06-09 | Z16: 2004-05-31 | AA16: 2005-05-16 | AB16: 2006-06-05 | AC16: 2007-05-28 | AD16: 2008-05-12 | AE16: 2009-06-01 | AF16: 2010-05-24 | AG16: =AG22+50 -> 2011-06-13 | AH16: 2012-05-28 | AI16: 2013-05-20 | AJ16: 2014-06-09 | AK16: 2015-05-25 | AL16: 2016-05-16 | AM16: 2017-06-05 | AN16: 2018-05-21 | AO16: 2019-06-10 | AP16: 2020-06-01 | AQ16: 2021-05-24 | AR16: 2022-06-06 | AS16: 2023-05-29 | AT16: 2024-05-20 | AU16: 2025-06-09 | AV16: 2026-05-25 | AW16: 2027-05-17 | AX16: 2028-06-05 | AY16: 2029-05-21 | AZ16: 2030-06-10 | BA16: 2031-06-02 | BB16: 2032-05-17 | BC16: 2033-06-06 | BD16: 2034-05-29 | BE16: 2035-05-14 | BF16: 2036-06-02 | BG16: 2037-05-25 | BH16: 2038-06-14 | BI16: 2039-05-30 | BJ16: 2040-05-21 | BK16: 2041-06-10 | BL16: 2042-05-26 | BM16: 2043-05-18 | BN16: 2044-06-06 | BO16: 2045-05-29 | BP16: 2046-05-14
A17: Fête nationale | B17: =DATE(B10,7,14) -> 1980-07-14 | C17: =DATE(C10,7,14) -> 1981-07-14 | D17: 1982-07-14 | E17: 1983-07-14 | F17: 1984-07-14 | G17: 1985-07-14 | H17: 1986-07-14 | I17: 1987-07-14 | J17: 1988-07-14 | K17: 1989-07-14 | L17: 1990-07-14 | M17: 1991-07-14 | N17: 1992-07-14 | O17: 1993-07-14 | P17: 1994-07-14 | Q17: 1995-07-14 | R17: 1996-07-14 | S17: 1997-07-14 | T17: 1998-07-14 | U17: 1999-07-14 | V17: 2000-07-14 | W17: 2001-07-14 | X17: 2002-07-14 | Y17: 2003-07-14 | Z17: 2004-07-14 | AA17: 2005-07-14 | AB17: 2006-07-14 | AC17: 2007-07-14 | AD17: 2008-07-14 | AE17: 2009-07-14 | AF17: 2010-07-14 | AG17: =DATE(AG10,7,14) -> 2011-07-14 | AH17: 2012-07-14 | AI17: 2013-07-14 | AJ17: 2014-07-14 | AK17: 2015-07-14 | AL17: 2016-07-14 | AM17: 2017-07-14 | AN17: 2018-07-14 | AO17: 2019-07-14 | AP17: 2020-07-14 | AQ17: 2021-07-14 | AR17: 2022-07-14 | AS17: 2023-07-14 | AT17: 2024-07-14 | AU17: 2025-07-14 | AV17: 2026-07-14 | AW17: 2027-07-14 | AX17: 2028-07-14 | AY17: 2029-07-14 | AZ17: 2030-07-14 | BA17: 2031-07-14 | BB17: 2032-07-14 | BC17: 2033-07-14 | BD17: 2034-07-14 | BE17: 2035-07-14 | BF17: 2036-07-14 | BG17: 2037-07-14 | BH17: 2038-07-14 | BI17: 2039-07-14 | BJ17: 2040-07-14 | BK17: 2041-07-14 | BL17: 2042-07-14 | BM17: 2043-07-14 | BN17: 2044-07-14 | BO17: 2045-07-14 | BP17: 2046-07-14
A18: Assomption | B18: =DATE(B10,8,15) -> 1980-08-15 | C18: =DATE(C10,8,15) -> 1981-08-15 | D18: 1982-08-15 | E18: 1983-08-15 | F18: 1984-08-15 | G18: 1985-08-15 | H18: 1986-08-15 | I18: 1987-08-15 | J18: 1988-08-15 | K18: 1989-08-15 | L18: 1990-08-15 | M18: 1991-08-15 | N18: 1992-08-15 | O18: 1993-08-15 | P18: 1994-08-15 | Q18: 1995-08-15 | R18: 1996-08-15 | S18: 1997-08-15 | T18: 1998-08-15 | U18: 1999-08-15 | V18: 2000-08-15 | W18: 2001-08-15 | X18: 2002-08-15 | Y18: 2003-08-15 | Z18: 2004-08-15 | AA18: 2005-08-15 | AB18: 2006-08-15 | AC18: 2007-08-15 | AD18: 2008-08-15 | AE18: 2009-08-15 | AF18: 2010-08-15 | AG18: =DATE(AG10,8,15) -> 2011-08-15 | AH18: 2012-08-15 | AI18: 2013-08-15 | AJ18: 2014-08-15 | AK18: 2015-08-15 | AL18: 2016-08-15 | AM18: 2017-08-15 | AN18: 2018-08-15 | AO18: 2019-08-15 | AP18: 2020-08-15 | AQ18: 2021-08-15 | AR18: 2022-08-15 | AS18: 2023-08-15 | AT18: 2024-08-15 | AU18: 2025-08-15 | AV18: 2026-08-15 | AW18: 2027-08-15 | AX18: 2028-08-15 | AY18: 2029-08-15 | AZ18: 2030-08-15 | BA18: 2031-08-15 | BB18: 2032-08-15 | BC18: 2033-08-15 | BD18: 2034-08-15 | BE18: 2035-08-15 | BF18: 2036-08-15 | BG18: 2037-08-15 | BH18: 2038-08-15 | BI18: 2039-08-15 | BJ18: 2040-08-15 | BK18: 2041-08-15 | BL18: 2042-08-15 | BM18: 2043-08-15 | BN18: 2044-08-15 | BO18: 2045-08-15 | BP18: 2046-08-15
A19: Toussaint | B19: =DATE(B10,11,1) -> 1980-11-01 | C19: =DATE(C10,11,1) -> 1981-11-01 | D19: 1982-11-01 | E19: 1983-11-01 | F19: 1984-11-01 | G19: 1985-11-01 | H19: 1986-11-01 | I19: 1987-11-01 | J19: 1988-11-01 | K19: 1989-11-01 | L19: 1990-11-01 | M19: 1991-11-01 | N19: 1992-11-01 | O19: 1993-11-01 | P19: 1994-11-01 | Q19: 1995-11-01 | R19: 1996-11-01 | S19: 1997-11-01 | T19: 1998-11-01 | U19: 1999-11-01 | V19: 2000-11-01 | W19: 2001-11-01 | X19: 2002-11-01 | Y19: 2003-11-01 | Z19: 2004-11-01 | AA19: 2005-11-01 | AB19: 2006-11-01 | AC19: 2007-11-01 | AD19: 2008-11-01 | AE19: 2009-11-01 | AF19: 2010-11-01 | AG19: =DATE(AG10,11,1) -> 2011-11-01 | AH19: 2012-11-01 | AI19: 2013-11-01 | AJ19: 2014-11-01 | AK19: 2015-11-01 | AL19: 2016-11-01 | AM19: 2017-11-01 | AN19: 2018-11-01 | AO19: 2019-11-01 | AP19: 2020-11-01 | AQ19: 2021-11-01 | AR19: 2022-11-01 | AS19: 2023-11-01 | AT19: 2024-11-01 | AU19: 2025-11-01 | AV19: 2026-11-01 | AW19: 2027-11-01 | AX19: 2028-11-01 | AY19: 2029-11-01 | AZ19: 2030-11-01 | BA19: 2031-11-01 | BB19: 2032-11-01 | BC19: 2033-11-01 | BD19: 2034-11-01 | BE19: 2035-11-01 | BF19: 2036-11-01 | BG19: 2037-11-01 | BH19: 2038-11-01 | BI19: 2039-11-01 | BJ19: 2040-11-01 | BK19: 2041-11-01 | BL19: 2042-11-01 | BM19: 2043-11-01 | BN19: 2044-11-01 | BO19: 2045-11-01 | BP19: 2046-11-01
A20: Armistice | B20: =DATE(B10,11,11) -> 1980-11-11 | C20: =DATE(C10,11,11) -> 1981-11-11 | D20: 1982-11-11 | E20: 1983-11-11 | F20: 1984-11-11 | G20: 1985-11-11 | H20: 1986-11-11 | I20: 1987-11-11 | J20: 1988-11-11 | K20: 1989-11-11 | L20: 1990-11-11 | M20: 1991-11-11 | N20: 1992-11-11 | O20: 1993-11-11 | P20: 1994-11-11 | Q20: 1995-11-11 | R20: 1996-11-11 | S20: 1997-11-11 | T20: 1998-11-11 | U20: 1999-11-11 | V20: 2000-11-11 | W20: 2001-11-11 | X20: 2002-11-11 | Y20: 2003-11-11 | Z20: 2004-11-11 | AA20: 2005-11-11 | AB20: 2006-11-11 | AC20: 2007-11-11 | AD20: 2008-11-11 | AE20: 2009-11-11 | AF20: 2010-11-11 | AG20: =DATE(AG10,11,11) -> 2011-11-11 | AH20: 2012-11-11 | AI20: 2013-11-11 | AJ20: 2014-11-11 | AK20: 2015-11-11 | AL20: 2016-11-11 | AM20: 2017-11-11 | AN20: 2018-11-11 | AO20: 2019-11-11 | AP20: 2020-11-11 | AQ20: 2021-11-11 | AR20: 2022-11-11 | AS20: 2023-11-11 | AT20: 2024-11-11 | AU20: 2025-11-11 | AV20: 2026-11-11 | AW20: 2027-11-11 | AX20: 2028-11-11 | AY20: 2029-11-11 | AZ20: 2030-11-11 | BA20: 2031-11-11 | BB20: 2032-11-11 | BC20: 2033-11-11 | BD20: 2034-11-11 | BE20: 2035-11-11 | BF20: 2036-11-11 | BG20: 2037-11-11 | BH20: 2038-11-11 | BI20: 2039-11-11 | BJ20: 2040-11-11 | BK20: 2041-11-11 | BL20: 2042-11-11 | BM20: 2043-11-11 | BN20: 2044-11-11 | BO20: 2045-11-11 | BP20: 2046-11-11
A21: Noël | B21: =DATE(B10,12,25) -> 1980-12-25 | C21: =DATE(C10,12,25) -> 1981-12-25 | D21: 1982-12-25 | E21: 1983-12-25 | F21: 1984-12-25 | G21: 1985-12-25 | H21: 1986-12-25 | I21: 1987-12-25 | J21: 1988-12-25 | K21: 1989-12-25 | L21: 1990-12-25 | M21: 1991-12-25 | N21: 1992-12-25 | O21: 1993-12-25 | P21: 1994-12-25 | Q21: 1995-12-25 | R21: 1996-12-25 | S21: 1997-12-25 | T21: 1998-12-25 | U21: 1999-12-25 | V21: 2000-12-25 | W21: 2001-12-25 | X21: 2002-12-25 | Y21: 2003-12-25 | Z21: 2004-12-25 | AA21: 2005-12-25 | AB21: 2006-12-25 | AC21: 2007-12-25 | AD21: 2008-12-25 | AE21: 2009-12-25 | AF21: 2010-12-25 | AG21: =DATE(AG10,12,25) -> 2011-12-25 | AH21: 2012-12-25 | AI21: 2013-12-25 | AJ21: 2014-12-25 | AK21: 2015-12-25 | AL21: 2016-12-25 | AM21: 2017-12-25 | AN21: 2018-12-25 | AO21: 2019-12-25 | AP21: 2020-12-25 | AQ21: 2021-12-25 | AR21: 2022-12-25 | AS21: 2023-12-25 | AT21: 2024-12-25 | AU21: 2025-12-25 | AV21: 2026-12-25 | AW21: 2027-12-25 | AX21: 2028-12-25 | AY21: 2029-12-25 | AZ21: 2030-12-25 | BA21: 2031-12-25 | BB21: 2032-12-25 | BC21: 2033-12-25 | BD21: 2034-12-25 | BE21: 2035-12-25 | BF21: 2036-12-25 | BG21: 2037-12-25 | BH21: 2038-12-25 | BI21: 2039-12-25 | BJ21: 2040-12-25 | BK21: 2041-12-25 | BL21: 2042-12-25 | BM21: 2043-12-25 | BN21: 2044-12-25 | BO21: 2045-12-25 | BP21: 2046-12-25
A22: Pâques | B22: =DATE(B10,IF((25-MOD((11*MOD(B10-1900,19)+4-INT((7*MOD(B10-1900,19)+1)/19)),29)-MOD(B10-1900+INT((B10-1900)/4)+31-MOD((11*MOD(B10-1900,19)+4-INT((7*MOD(B10-1900,19)+1)/19)),29),7))>0,4,3),IF((25-MOD((11*MOD(B10-1900,19)+4-INT((7*MOD(B10-1900,19)+1)/19)),29)-MOD(B10-1900+INT((B10-1900)/4)+31-MOD((11*MOD(B10-1900,19)+4-INT((7*MOD(B10-1900,19)+1)/19)),29),7))>0,(25-MOD((11*MOD(B10-1900,19)+4-INT((7*MOD(B10-1900,19)+1)/19)),29)-MOD(B10-1900+INT((B10-1900)/4)+31-MOD((11*MOD(B10-1900,19)+4-INT((7*MOD(B10-1900,19)+1)/19)),29),7)),31+(25-MOD((11*MOD(B10-1900,19)+4-INT((7*MOD(B10-1900,19)+1)/19)),29)-MOD(B10-1900+INT((B10-1900)/4)+31-MOD((11*MOD(B10-1900,19)+4-INT((7*MOD(B10-1900,19)+1)/19)),29),7)))) -> 1980-04-06 | C22: 1981-04-19 | D22: 1982-04-11 | E22: 1983-04-03 | F22: 1984-04-22 | G22: 1985-04-07 | H22: 1986-03-30 | I22: 1987-04-19 | J22: 1988-04-03 | K22: 1989-03-26 | L22: 1990-04-15 | M22: 1991-03-31 | N22: 1992-04-19 | O22: 1993-04-11 | P22: 1994-04-03 | Q22: 1995-04-16 | R22: 1996-04-07 | S22: 1997-03-30 | T22: 1998-04-12 | U22: 1999-04-04 | V22: 2000-04-23 | W22: 2001-04-15 | X22: 2002-03-31 | Y22: 2003-04-20 | Z22: 2004-04-11 | AA22: 2005-03-27 | AB22: 2006-04-16 | AC22: 2007-04-08 | AD22: 2008-03-23 | AE22: 2009-04-12 | AF22: 2010-04-04 | AG22: =DATE(AG10,IF((25-MOD((11*MOD(AG10-1900,19)+4-INT((7*MOD(AG10-1900,19)+1)/19)),29)-MOD(AG10-1900+INT((AG10-1900)/4)+31-MOD((11*MOD(AG10-1900,19)+4-INT((7*MOD(AG10-1900,19)+1)/19)),29),7))>0,4,3),IF((25-MOD((11*MOD(AG10-1900,19)+4-INT((7*MOD(AG10-1900,19)+1)/19)),29)-MOD(AG10-1900+INT((AG10-1900)/4)+31-MOD((11*MOD(AG10-1900,19)+4-INT((7*MOD(AG10-1900,19)+1)/19)),29),7))>0,(25-MOD((11*MOD(AG10-1900,19)+4-INT((7*MOD(AG10-1900,19)+1)/19)),29)-MOD(AG10-1900+INT((AG10-1900)/4)+31-MOD((11*MOD(AG10-1900,19)+4-INT((7*MOD(AG10-1900,19)+1)/19)),29),7)),31+(25-MOD((11*MOD(AG10-1900,19)+4-INT((7*MOD(AG10-1900,19)+1)/19)),29)-MOD(AG10-1900+INT((AG10-1900)/4)+31-MOD((11*MOD(AG10-1900,19)+4-INT((7*MOD(AG10-1900,19)+1)/19)),29),7)))) -> 2011-04-24 | AH22: 2012-04-08 | AI22: 2013-03-31 | AJ22: 2014-04-20 | AK22: 2015-04-05 | AL22: 2016-03-27 | AM22: 2017-04-16 | AN22: 2018-04-01 | AO22: 2019-04-21 | AP22: 2020-04-12 | AQ22: 2021-04-04 | AR22: 2022-04-17 | AS22: 2023-04-09 | AT22: 2024-03-31 | AU22: 2025-04-20 | AV22: 2026-04-05 | AW22: 2027-03-28 | AX22: 2028-04-16 | AY22: 2029-04-01 | AZ22: 2030-04-21 | BA22: 2031-04-13 | BB22: 2032-03-28 | BC22: 2033-04-17 | BD22: 2034-04-09 | BE22: 2035-03-25 | BF22: 2036-04-13 | BG22: 2037-04-05 | BH22: 2038-04-25 | BI22: 2039-04-10 | BJ22: 2040-04-01 | BK22: 2041-04-21 | BL22: 2042-04-06 | BM22: 2043-03-29 | BN22: 2044-04-17 | BO22: 2045-04-09 | BP22: 2046-03-25
A24: Attention, la ligne de Pâques sert juste de référence pour situer ce jour dans l'année
A27: Ce qui donne quand on inclut les jours fériés (et a priori, la formule tient compte des jours non ouvrés) :
A29: Date de début de carrière | B29: Date de fin de carrière | C29: Période de début temps partiel | D29: Période de fin de temps partiel | E29: Nb de jours ouvrés
A30: 1980-02-01 | B30: 2010-02-01 | E30: =NETWORKDAYS(A30,B30,$B$11:$AF$21) -> 7567 | F30: sur les trentes années entre 1980 et 2010
A33: Donc en prenant l'exemple d'un salarié lambda
A35: Date de début de carrière | B35: Date de fin de carrière | C35: Période de début temps partiel | D35: Période de fin de temps partiel | E35: Nb de jours ouvrés | F35: Nb de jours restants pour les 30 ans | G35: Estimé en année
A36: 1980-11-01 | B36: 2010-02-01 | C36: 1990-05-10 | D36: 1990-12-31 | E36: =NETWORKDAYS(A36,B36,$B$11:$AF$21)-NETWORKDAYS(C36,D36,$B$11:$AF$21) -> 7215 | F36: =E30-E36 -> 352 | G36: =F36/365 -> 0.9643835616
A41: En complément d'informations :
A43: 1. La date de début de calcul des jours fériés a été fixé à 1980, soit la date d'ancienneté du salarié exemple. Pour une table d'employés plus importantes, il conviendra de prendre comme date de départ la plus ancienne.
A44: La table pourra se réajuster juste en faisant une copie incrémentée (+1 à chaque fois). Il est aussi possible de mettre cette table dans un autre onglet.
A45: 2. Je n'ai pas vérifié l'exactitude des dates de jours fériés remontés mais, a priori, cela semble correct.
A46: 3. Pour que le compteur de jours soit dynamique, la donnée dans la cellule de date de fin de carrière doit être en formule, soit => | G46: =TODAY() -> 2017-11-01
A47: 4. Dans le dernier exemple, un salarié qui aurait travaillé à temps partiel pendant quelques mois, voit son nombre de jours augmenter
A48: 5. Pour le calcul soit exact, il faudra néanmoins le faire pour chacun, ce qui signifie que la table des jours fériés doit aller jusque 30 ans après l'entrée du dernier salarié.
